lending/lending_fUSD_20251121
["ID","MTS","AMOUNT","RATE_DAILY","PERIOD"]
[394593711,1763747507105,-500.0,0.00037709,30]
[394593712,1763747507140,-500.0,0.00037709,30]
[394593713,1763747507175,-500.0,0.00037709,30]
[394593714,1763747507209,-500.0,0.00037709,30]
[394593715,1763747507243,-500.0,0.00037709,30]
[394593716,1763747507277,-500.0,0.00037709,30]
[394593717,1763747507311,-614.4992717,0.00037709,30]
[394593718,1763747507348,-587.5017785,0.00037709,30]
[394593719,1763747507383,-503.07570262,0.00037709,30]
[394593720,1763747507419,-500.0,0.00037709,30]
[394593721,1763747507454,-500.0,0.00037709,30]
[394593722,1763747507489,-500.0,0.00037709,30]
[394593723,1763747507525,-500.0,0.00037709,30]
[394593724,1763747507558,-614.4992717,0.00037709,30]
[394593725,1763747507591,-500.0,0.00037709,30]
[394593726,1763747507624,-771.41384796,0.00037709,30]
[394593727,1763747507673,-500.0,0.00037709,30]
[394593728,1763747507710,-682.23915614,0.00037709,30]
[394593729,1763747507749,-614.4992717,0.00037709,30]
[394593730,1763747507783,-500.0,0.00037709,30]
[394593731,1763747507819,-522.24953509,0.00037709,30]
[394593732,1763747507852,-500.0,0.00037709,30]
[394593733,1763747507887,-614.4992717,0.00037709,30]
[394593734,1763747507921,-512.19469593,0.00037709,30]
[394593735,1763747507956,-504.75297932,0.00037709,30]
[394593736,1763747507989,-614.4992717,0.00037709,30]
[394593737,1763747508024,-500.0,0.00037852,120]
[394593738,1763747508056,-731.97957,0.00037888,30]
[394593739,1763747508093,-163.0,0.00038,30]
[394593740,1763747508125,-300.0,0.00038,120]
[394593741,1763747508162,-367.67148571,0.00038,120]
[394593742,1763747508193,-203.0,0.00038,60]
[394593743,1763747508224,-402.927971,0.00038,120]
[394593744,1763747508255,-426.56612961,0.00038,30]
[394593745,1763747508285,-426.56612961,0.00038,120]
[394593746,1763747508319,-731.97957,0.00038088,30]
[394593747,1763747508350,-1500.0,0.00038111,120]
[394593748,1763747508382,-1052.41577815,0.0003813,120]
[394593749,1763747508415,-210.61640943,0.000382,120]
[394593750,1763747508447,-731.97957,0.00038288,30]
[394593751,1763747508478,-503.65613922,0.000383,30]
[394593752,1763747508510,-300.0,0.00038356,120]
[394593753,1763747508540,-1347.0,0.00038356,30]
[394593754,1763747508572,-731.97957,0.00038488,30]
[394593755,1763747508607,-500.0,0.00038499,120]
[394593756,1763747508639,-1000.0,0.000385,120]
[394593757,1763747508670,-224.57482387,0.0003855,120]
[394593758,1763747508705,-731.97957,0.00038688,30]
[394593759,1763747508736,-500.0,0.000387,120]
[394593760,1763747508767,-500.0,0.000387,120]
[394593761,1763747508797,-500.0,0.000387,120]
[394593762,1763747508827,-500.0,0.000387,120]
[394593763,1763747508858,-500.0,0.000387,120]
[394593764,1763747508893,-500.0,0.000387,120]
[394593765,1763747508923,-500.0,0.000387,120]
[394593766,1763747508953,-500.0,0.000387,120]
[394593767,1763747508984,-500.0,0.000387,120]
[394593768,1763747509015,-500.0,0.000387,120]
[394593769,1763747509046,-500.0,0.00038705,120]
[394593770,1763747509081,-306.1510786,0.000389,31]
[394593771,1763747509116,-211.0,0.0003891,30]
[394593772,1763747509149,-400.0,0.00039,120]
[394593773,1763747509178,-500.0,0.00039,120]
[394593774,1763747509210,-376.33980149,0.00039,120]
[394593775,1763747509241,-731.97957,0.00039088,30]
[394593776,1763747509273,-156.57,0.0003919,120]
[394593777,1763747509307,-168.02,0.00039206,120]
[394593778,1763747509340,-158.58,0.00039209,120]
[394593779,1763747509378,-731.97957,0.00039288,30]
[394593780,1763747509413,-156.57,0.0003929,120]
[394593781,1763747509448,-168.02,0.00039306,120]
[394593782,1763747509480,-158.58,0.00039309,120]
[394593783,1763747509515,-270.69,0.00039384,120]
[394593784,1763747509548,-156.57,0.0003939,120]
[394593785,1763747509581,-168.02,0.00039406,120]
[394593786,1763747509614,-158.58453257,0.00039409,120]
[394593787,1763747509644,-731.97957,0.00039488,30]
[394593788,1763747509675,-156.57,0.0003949,120]
[394593789,1763747509707,-2999.959998,0.000395,60]
[394593790,1763747509739,-151.0,0.000395,120]
[394593791,1763747509769,-151.0,0.000395,120]
[394593792,1763747510027,-151.0,0.000395,120]
[394593793,1763747510060,-217.937865,0.000395,120]
[394593794,1763747510093,-151.0,0.000395,120]
[394593795,1763747510125,-151.0,0.000395,120]
[394593796,1763747510154,-151.0,0.000395,120]
[394593797,1763747510183,-243.510936,0.000395,120]
[394593798,1763747510212,-151.0,0.000395,120]
[394593799,1763747510241,-151.0,0.000395,120]
[394593800,1763747510268,-156.485085,0.000395,120]
[394593801,1763747510297,-151.0,0.000395,120]
[394593802,1763747510325,-165.041882,0.000395,120]
[394593803,1763747510354,-151.0,0.000395,120]
[394593804,1763747510383,-151.0,0.000395,120]
[394593805,1763747510413,-151.0,0.000395,120]
[394593806,1763747510445,-151.0,0.000395,120]
[394593807,1763747510482,-153.037236,0.000395,120]
[394593808,1763747510511,-240.464036,0.000395,120]
[394593809,1763747510542,-151.0,0.000395,120]
[394593810,1763747510572,-151.0,0.000395,120]
[394593811,1763747510602,-151.0,0.000395,120]
[394593812,1763747510631,-151.0,0.000395,120]
[394593813,1763747510659,-151.0,0.000395,120]
[394593814,1763747510687,-151.0,0.000395,120]
[394593815,1763747510715,-151.0,0.000395,120]
[394593816,1763747510744,-245.701528,0.000395,120]
[394593817,1763747510775,-158.067616,0.000395,120]
[394593818,1763747510804,-151.0,0.000395,120]
[394593819,1763747510832,-151.0,0.000395,120]
[394593820,1763747510861,-151.0,0.000395,120]
[394593821,1763747510889,-269.222207,0.000395,120]
[394593822,1763747510917,-151.0,0.000395,30]
[394593823,1763747510946,-151.0,0.000395,30]
[394593824,1763747510974,-151.0,0.000395,30]
[394593825,1763747511001,-151.0,0.000395,120]
[394593826,1763747511030,-151.0,0.000395,120]
[394593827,1763747511057,-151.0,0.000395,120]
[394593828,1763747511086,-151.0,0.000395,120]
[394593829,1763747511114,-151.0,0.000395,120]
[394593830,1763747511141,-151.0,0.000395,120]
[394593831,1763747511168,-151.0,0.000395,120]
[394593832,1763747511196,-151.0,0.000395,60]
[394593833,1763747511225,-151.0,0.000395,120]
[394593834,1763747511256,-181.731971,0.000395,120]
[394593835,1763747511285,-181.731971,0.000395,120]
[394593836,1763747511314,-181.731971,0.000395,120]
[394593837,1763747511344,-181.731971,0.000395,120]
[394593838,1763747511371,-151.307565,0.000395,60]
[394593839,1763747511400,-151.0,0.000395,120]
[394593840,1763747511432,-151.0,0.000395,120]
[394593841,1763747511462,-151.0,0.000395,120]
[394593842,1763747511491,-151.0,0.000395,120]
[394593843,1763747511520,-151.0,0.000395,120]
[394593844,1763747511550,-151.0,0.000395,60]
[394593845,1763747511579,-151.0,0.000395,120]
[394593846,1763747511610,-151.0,0.000395,120]
[394593847,1763747511646,-153.692557,0.000395,120]
[394593848,1763747511677,-151.0,0.000395,120]
[394593849,1763747511705,-152.233638,0.000395,120]
[394593850,1763747511735,-151.0,0.000395,120]
[394593851,1763747511763,-151.0,0.000395,120]
[394593852,1763747511792,-151.0,0.000395,120]
[394593853,1763747511823,-151.0,0.000395,120]
[394593854,1763747511856,-151.0,0.000395,120]
[394593855,1763747511888,-151.0,0.000395,120]
[394593856,1763747511920,-151.0,0.000395,120]
[394593857,1763747511951,-151.0,0.000395,120]
[394593858,1763747511979,-151.0,0.000395,120]
[394593859,1763747512009,-153.993962,0.000395,120]
[394593860,1763747512040,-168.02,0.00039506,120]
[394593861,1763747512071,-500.0,0.00039557,120]
[394593862,1763747512102,-156.57,0.0003959,120]
[394593863,1763747512131,-1120.78630514,0.000396,120]
[394593864,1763747512162,-1033.7,0.000396,30]
[394593865,1763747512191,-224.15656038,0.000396,120]
[394593866,1763747512221,-168.02,0.00039606,120]
[394593867,1763747512250,-731.97957,0.00039688,30]
[394593868,1763747512281,-156.57,0.0003969,120]
[394593869,1763747512311,-168.02,0.00039706,120]
[394593870,1763747512344,-156.57,0.0003979,120]
[394593871,1763747512372,-538.61,0.000398,90]
[394593872,1763747512402,-168.02,0.00039806,120]
[394593873,1763747512436,-300.211602,0.00039872,97]
[394593874,1763747512464,-2800.0,0.00039876,31]
[394593875,1763747512492,-731.97957,0.00039888,30]
[394593876,1763747512521,-156.59894879,0.0003989,120]
[394593877,1763747512549,-167.0,0.000399,90]
[394593878,1763747512578,-504.0,0.000399,120]
[394593879,1763747512606,-251.02841321,0.000399,120]
[394593880,1763747512634,-251.02841321,0.000399,120]
[394593881,1763747512662,-251.02841321,0.000399,120]
[394593882,1763747512689,-251.02841321,0.000399,120]
[394593883,1763747512716,-5058.24968,0.00039906,30]
[394593884,1763747512749,-168.02123661,0.00039906,120]
[394593885,1763747512775,-1557.55462871,0.00039911,120]
[394593886,1763747513001,-158.8,0.0003998,120]
[394593887,1763747513030,-154.0,0.0003999,120]
[394593888,1763747513060,-500.0,0.00039999,120]
[394593889,1763747513094,-402.69347721,0.00039999,31]
[394593890,1763747513143,-447.49882723,0.00039999,31]
[394593891,1763747513179,-397.71356752,0.00039999,31]
[394593892,1763747513217,-500.0,0.00039999,31]
[394593893,1763747513255,-641.83216168,0.00039999,31]
[394593894,1763747513289,-436.3866634,0.00039999,31]
[394593895,1763747513330,-500.0,0.00039999,31]
[394593896,1763747513365,-217.537,0.00039999,31]
[394593897,1763747513405,-500.0,0.00039999,31]
[394593898,1763747513439,-500.0,0.00039999,31]
[394593899,1763747513479,-349.597818,0.00039999,31]
[394593900,1763747513518,-500.0,0.00039999,31]
[394593901,1763747513551,-500.0,0.00039999,31]
[394593902,1763747513584,-165.70889879,0.00039999,31]
[394593903,1763747513628,-500.0,0.00039999,31]
[394593904,1763747513662,-376.53390726,0.00039999,31]
[394593905,1763747513697,-500.0,0.00039999,31]
[394593906,1763747513731,-50000.0,0.0004,40]
[394593907,1763747513762,-162.79488777,0.0004,120]
[394593908,1763747513795,-1031.18545988,0.0004,120]
[394593909,1763747513825,-238.52296218,0.0004,30]
[394593910,1763747513856,-200.0,0.0004,120]
[394593911,1763747513886,-300.0,0.0004,120]
[394593912,1763747513916,-176.26441652,0.0004,30]
[394593913,1763747513947,-831.68014242,0.0004,30]
[394593914,1763747513980,-957.74259618,0.0004,120]
[394593915,1763747514011,-977.60128491,0.0004,120]
[394593916,1763747514045,-2022.63898517,0.0004,120]
[394593917,1763747514080,-523.41022023,0.0004,120]
[394593918,1763747514115,-1126.83417707,0.0004,30]
[394593919,1763747514146,-515.0,0.0004,30]
[394593920,1763747514178,-1000.0,0.0004,120]
[394593921,1763747514210,-887.22978802,0.0004,120]
[394593922,1763747514240,-2637.58686187,0.0004,120]
[394593923,1763747514271,-956.0,0.0004,120]
[394593924,1763747514307,-329.0,0.0004,120]
[394593925,1763747514341,-1022.83967398,0.0004,120]
[394593926,1763747514377,-200.0,0.0004,120]
[394593927,1763747514412,-1500.0,0.0004,120]
[394593928,1763747514450,-536.0,0.0004,120]
[394593929,1763747514486,-426.56612961,0.0004,120]
[394593930,1763747514516,-198.3,0.0004,120]
[394593931,1763747514548,-651.45,0.0004,120]
[394593932,1763747514579,-173.11,0.0004,120]
[394593933,1763747514610,-867.33,0.0004,120]
[394593934,1763747514640,-520.45,0.0004,120]
[394593935,1763747514671,-1582.01,0.0004,120]
[394593936,1763747514701,-1013.0,0.0004,30]
[394593937,1763747514730,-5197.45,0.0004,120]
[394593938,1763747514760,-731.97957,0.00040088,30]
[394593939,1763747514789,-2700.75,0.000402,30]
[394593940,1763747514819,-731.97957,0.00040288,30]
[394593941,1763747514849,-1033.7,0.0004032,120]
[394593942,1763747514877,-2700.75,0.000404,30]
[394593943,1763747514907,-500.0,0.0004041,120]
[394593944,1763747514937,-731.97957,0.00040488,30]
[394593945,1763747514967,-185.9944082,0.000405,120]
[394593946,1763747515000,-607.68753264,0.000405,120]
[394593947,1763747515030,-658.65367058,0.000405,120]
[394593948,1763747515058,-204.23559693,0.000405,120]
[394593949,1763747515088,-202.83262532,0.000405,120]
[394593950,1763747515117,-416.92464114,0.000405,120]
[394593951,1763747515147,-2086.6758214,0.000405,120]
[394593952,1763747515176,-300.00055568,0.000405,120]
[394593953,1763747515207,-1444.0,0.00040658,120]
[394593954,1763747515239,-731.97957,0.00040688,30]
[394593955,1763747515271,-1944.14365678,0.000407,30]
[394593956,1763747515304,-224.57482387,0.00040742,120]
[394593957,1763747515334,-571.54337686,0.000408,120]
[394593958,1763747515367,-4000.0,0.000408,30]
[394593959,1763747515398,-4000.0,0.000408,30]
[394593960,1763747515432,-500.0,0.00040822,120]
[394593961,1763747515465,-500.0,0.00040822,120]
[394593962,1763747515498,-500.0,0.00040822,120]
[394593963,1763747515528,-500.0,0.00040822,120]
[394593964,1763747515559,-500.0,0.00040822,120]
[394593965,1763747515591,-500.0,0.00040822,120]
[394593966,1763747515622,-500.0,0.00040822,120]
[394593967,1763747515653,-500.0,0.00040822,120]
[394593968,1763747515689,-500.0,0.00040822,120]
[394593969,1763747515722,-500.0,0.00040822,120]
[394593970,1763747515755,-500.0,0.00040822,120]
[394593971,1763747515784,-500.0,0.00040822,120]
[394593972,1763747515815,-500.0,0.00040822,120]
[394593973,1763747515845,-500.0,0.00040822,120]
[394593974,1763747515878,-500.0,0.00040822,120]
[394593975,1763747515911,-500.0,0.00040822,120]
[394593976,1763747515940,-500.0,0.00040822,120]
[394593977,1763747515970,-500.0,0.00040822,120]
[394593978,1763747515999,-500.0,0.00040822,120]
[394593979,1763747516028,-500.0,0.00040822,120]
[394593980,1763747516281,-500.0,0.00040822,120]
[394593981,1763747516315,-500.0,0.00040822,120]
[394593982,1763747516347,-500.0,0.00040822,120]
[394593983,1763747516380,-500.0,0.00040822,120]
[394593984,1763747516415,-500.0,0.00040822,120]
[394593985,1763747516447,-500.0,0.00040822,120]
[394593986,1763747516479,-500.0,0.00040822,120]
[394593987,1763747516512,-500.0,0.00040822,120]
[394593988,1763747516542,-500.0,0.00040822,120]
[394593989,1763747516578,-500.0,0.00040822,120]
[394593990,1763747516609,-500.0,0.00040822,120]
[394593991,1763747516645,-500.0,0.00040822,120]
[394593992,1763747516676,-500.0,0.00040822,120]
[394593993,1763747516705,-500.0,0.00040822,120]
[394593994,1763747516736,-500.0,0.00040822,120]
[394593995,1763747516764,-500.0,0.00040822,120]
[394593996,1763747516792,-500.0,0.00040822,120]
[394593997,1763747516823,-500.0,0.00040822,120]
[394593998,1763747516853,-500.0,0.00040822,120]
[394593999,1763747516882,-500.0,0.00040822,120]
[394594000,1763747516911,-500.0,0.00040822,120]
[394594001,1763747516939,-500.0,0.00040822,120]
[394594002,1763747516968,-500.0,0.00040822,120]
[394594003,1763747516996,-500.0,0.00040822,120]
[394594004,1763747517023,-500.0,0.00040822,120]
[394594005,1763747517051,-500.0,0.00040822,120]
[394594006,1763747517086,-500.0,0.00040822,120]
[394594007,1763747517115,-500.0,0.00040822,120]
[394594008,1763747517143,-500.0,0.00040822,120]
[394594009,1763747517171,-500.0,0.00040822,120]
[394594010,1763747517200,-500.0,0.00040822,120]
[394594011,1763747517230,-500.0,0.00040822,120]
[394594012,1763747517258,-500.0,0.00040822,120]
[394594013,1763747517286,-500.0,0.00040822,120]
[394594014,1763747517314,-500.0,0.00040822,120]
[394594015,1763747517344,-500.0,0.00040822,120]
[394594016,1763747517379,-500.0,0.00040822,120]
[394594017,1763747517410,-500.0,0.00040822,120]
[394594018,1763747517440,-500.0,0.00040822,120]
[394594019,1763747517471,-500.0,0.00040822,120]
[394594020,1763747517500,-500.0,0.00040822,120]
[394594021,1763747517528,-500.0,0.00040822,120]
[394594022,1763747517557,-500.0,0.00040822,120]
[394594023,1763747517586,-500.0,0.00040822,120]
[394594024,1763747517616,-500.0,0.00040822,120]
[394594025,1763747517645,-500.0,0.00040822,120]
[394594026,1763747517673,-500.0,0.00040822,120]
[394594027,1763747517704,-500.0,0.00040822,120]
[394594028,1763747517734,-500.0,0.00040822,120]
[394594029,1763747517762,-500.0,0.00040822,120]
[394594030,1763747517791,-500.0,0.00040822,120]
[394594031,1763747517823,-500.0,0.00040822,120]
[394594032,1763747517852,-542.47233509,0.00040822,120]
[394594033,1763747517881,-731.97957,0.00040888,30]
[394594034,1763747517910,-1564.0,0.00040898,30]
[394594035,1763747517938,-1040.97518549,0.000409,120]
[394594036,1763747517967,-211.0,0.0004093,30]
[394594037,1763747517995,-1276.99528298,0.00040982,120]
[394594038,1763747518025,-2656.29,0.00040999,59]
[394594039,1763747518052,-195.893,0.00040999,59]
[394594040,1763747518085,-50000.0,0.00041,41]
[394594041,1763747518114,-302.04,0.00041,120]
[394594042,1763747518144,-1684.76992699,0.00041,30]
[394594043,1763747518175,-1268.55,0.00041,120]
[394594044,1763747518204,-784.02093969,0.00041,120]
[394594045,1763747518234,-1039.625526,0.00041,120]
[394594046,1763747518265,-500.0,0.00041,120]
[394594047,1763747518294,-500.0,0.00041,120]
[394594048,1763747518323,-497.0,0.00041,120]
[394594049,1763747518352,-1533.13834553,0.00041,120]
[394594050,1763747518381,-342.01996287,0.00041,120]
[394594051,1763747518414,-4083.64163426,0.00041,30]
[394594052,1763747518443,-4014.16390868,0.00041,60]
[394594053,1763747518480,-500.0,0.00041,120]
[394594054,1763747518517,-324624.55879543,0.00041,120]
[394594055,1763747518554,-200.0,0.00041,30]
[394594056,1763747518583,-426.56612961,0.00041,120]
[394594057,1763747518612,-2700.75,0.00041,30]
[394594058,1763747518641,-60522.23231285,0.00041,30]
[394594059,1763747518670,-151.0,0.00041,120]
[394594060,1763747518702,-161.242732,0.00041,120]
[394594061,1763747518730,-151.0,0.00041,120]
[394594062,1763747518759,-151.0,0.00041,120]
[394594063,1763747518791,-151.0,0.00041,120]
[394594064,1763747518821,-151.0,0.00041,120]
[394594065,1763747518850,-151.0,0.00041,120]
[394594066,1763747518879,-151.0,0.00041,120]
[394594067,1763747518908,-215.943626,0.00041,120]
[394594068,1763747518937,-151.0,0.00041,120]
[394594069,1763747518966,-241.413445,0.00041,120]
[394594070,1763747518995,-151.0,0.00041,120]
[394594071,1763747519024,-151.0,0.00041,120]
[394594072,1763747519238,-151.0,0.00041,120]
[394594073,1763747519279,-151.0,0.00041,120]
[394594074,1763747519309,-151.0,0.00041,120]
[394594075,1763747519338,-151.0,0.00041,120]
[394594076,1763747519369,-151.125198,0.00041,120]
[394594077,1763747519403,-151.0,0.00041,120]
[394594078,1763747519434,-151.0,0.00041,120]
[394594079,1763747519464,-151.0,0.00041,120]
[394594080,1763747519494,-151.0,0.00041,120]
[394594081,1763747519523,-156.186913,0.00041,120]
[394594082,1763747519553,-500.0,0.00041,120]
[394594083,1763747519581,-151.0,0.00041,120]
[394594084,1763747519610,-151.0,0.00041,120]
[394594085,1763747519641,-151.0,0.00041,120]
[394594086,1763747519668,-151.0,0.00041,120]
[394594087,1763747519697,-151.0,0.00041,120]
[394594088,1763747519726,-151.0,0.00041,120]
[394594089,1763747519754,-151.0,0.00041,120]
[394594090,1763747519780,-151.0,0.00041,120]
[394594091,1763747519808,-151.0,0.00041,120]
[394594092,1763747519836,-151.0,0.00041,120]
[394594093,1763747519864,-151.0,0.00041,120]
[394594094,1763747519892,-151.0,0.00041,120]
[394594095,1763747519920,-151.0,0.00041,120]
[394594096,1763747519949,-151.0,0.00041,120]
[394594097,1763747519976,-151.0,0.00041,120]
[394594098,1763747520004,-151.0,0.00041,120]
[394594099,1763747520034,-254.294842,0.00041,120]
[394594100,1763747520064,-154.896613,0.00041,120]
[394594101,1763747520094,-151.0,0.00041,120]
[394594102,1763747520123,-151.0,0.00041,120]
[394594103,1763747520153,-151.0,0.00041,120]
[394594104,1763747520183,-151.0,0.00041,120]
[394594105,1763747520214,-151.0,0.00041,120]
[394594106,1763747520246,-151.0,0.00041,120]
[394594107,1763747520275,-151.0,0.00041,120]
[394594108,1763747520306,-151.0,0.00041,120]
[394594109,1763747520337,-151.0,0.00041,120]
[394594110,1763747520366,-151.0,0.00041,120]
[394594111,1763747520396,-151.0,0.00041,120]
[394594112,1763747520428,-151.0,0.00041,120]
[394594113,1763747520457,-151.0,0.00041,30]
[394594114,1763747520487,-151.0,0.00041,30]
[394594115,1763747520516,-151.0,0.00041,30]
[394594116,1763747520546,-151.0,0.00041,30]
[394594117,1763747520578,-151.0,0.00041,30]
[394594118,1763747520612,-151.0,0.00041,30]
[394594119,1763747520642,-151.0,0.00041,30]
[394594120,1763747520671,-151.0,0.00041,30]
[394594121,1763747520700,-151.0,0.00041,30]
[394594122,1763747520728,-188.0,0.00041,30]
[394594123,1763747520756,-151.0,0.00041,120]
[394594124,1763747520784,-151.0,0.00041,120]
[394594125,1763747520812,-151.0,0.00041,120]
[394594126,1763747520841,-179.723633,0.00041,120]
[394594127,1763747520870,-151.0,0.00041,120]
[394594128,1763747520898,-151.0,0.00041,120]
[394594129,1763747520927,-151.0,0.00041,120]
[394594130,1763747520955,-203.488208,0.00041,120]
[394594131,1763747520983,-155.153218,0.00041,120]
[394594132,1763747521013,-151.0,0.00041,120]
[394594133,1763747521041,-151.0,0.00041,120]
[394594134,1763747521069,-151.0,0.00041,120]
[394594135,1763747521101,-152.243022,0.00041,120]
[394594136,1763747521129,-151.0,0.00041,60]
[394594137,1763747521157,-151.0,0.00041,60]
[394594138,1763747521186,-151.0,0.00041,60]
[394594139,1763747521214,-227.359967,0.00041,60]
[394594140,1763747521242,-151.0,0.00041,120]
[394594141,1763747521270,-273.498921,0.00041,120]
[394594142,1763747521299,-181.731971,0.00041,120]
[394594143,1763747521331,-181.731971,0.00041,120]
[394594144,1763747521366,-181.731971,0.00041,120]
[394594145,1763747521397,-181.731971,0.00041,120]
[394594146,1763747521436,-181.731971,0.00041,120]
[394594147,1763747521469,-181.731971,0.00041,120]
[394594148,1763747521502,-181.731971,0.00041,120]
[394594149,1763747521533,-181.731971,0.00041,120]
[394594150,1763747521564,-181.731971,0.00041,120]
[394594151,1763747521609,-181.731971,0.00041,120]
[394594152,1763747521654,-181.731971,0.00041,120]
[394594153,1763747521695,-181.731971,0.00041,120]
[394594154,1763747521729,-181.731971,0.00041,120]
[394594155,1763747521762,-181.731971,0.00041,120]
[394594156,1763747521794,-181.731971,0.00041,120]
[394594157,1763747521825,-181.73198,0.00041,120]
[394594158,1763747521855,-203.944999,0.00041,120]
[394594159,1763747521888,-154.764255,0.00041,120]
[394594160,1763747521921,-153.671013,0.00041,120]
[394594161,1763747521951,-203.186816,0.00041,120]
[394594162,1763747521979,-151.0,0.00041,120]
[394594163,1763747522007,-152.858664,0.00041,120]
[394594164,1763747522040,-157.914121,0.00041,120]
[394594165,1763747522069,-151.0,0.00041,120]
[394594166,1763747522106,-160.222544,0.00041,120]
[394594167,1763747522330,-151.0,0.00041,120]
[394594168,1763747522362,-151.0,0.00041,120]
[394594169,1763747522397,-151.0,0.00041,120]
[394594170,1763747522434,-151.0,0.00041,120]
[394594171,1763747522469,-151.0,0.00041,120]
[394594172,1763747522503,-151.0,0.00041,120]
[394594173,1763747522533,-151.0,0.00041,120]
[394594174,1763747522565,-151.0,0.00041,120]
[394594175,1763747522597,-151.0,0.00041,120]
[394594176,1763747522628,-151.0,0.00041,120]
[394594177,1763747522661,-151.0,0.00041,120]
[394594178,1763747522691,-151.0,0.00041,120]
[394594179,1763747522720,-161.594631,0.00041,120]
[394594180,1763747522750,-151.0,0.00041,120]
[394594181,1763747522778,-167.765431,0.00041,120]
[394594182,1763747522807,-151.0,0.00041,120]
[394594183,1763747522838,-151.0,0.00041,120]
[394594184,1763747522871,-152.222109,0.00041,120]
[394594185,1763747522904,-151.0,0.00041,120]
[394594186,1763747522938,-426.56612961,0.00041,30]
[394594187,1763747522971,-151.0,0.00041,120]
[394594188,1763747523000,-151.0,0.00041,120]
[394594189,1763747523029,-151.0,0.00041,120]
[394594190,1763747523059,-1033.7,0.0004104,120]
[394594191,1763747523089,-731.97957,0.00041088,30]
[394594192,1763747523119,-19608.41,0.0004109,120]
[394594193,1763747523150,-1000.0,0.00041095,120]
[394594194,1763747523184,-252.25,0.00041096,120]
[394594195,1763747523215,-500.0,0.00041096,60]
[394594196,1763747523245,-24260.0,0.000411,60]
[394594197,1763747523275,-927.4980022,0.000411,120]
[394594198,1763747523306,-927.4980022,0.000411,120]
[394594199,1763747523337,-927.4980022,0.000411,120]
[394594200,1763747523370,-927.4980022,0.000411,120]
[394594201,1763747523402,-927.4980022,0.000411,120]
[394594202,1763747523441,-927.4980022,0.000411,120]
[394594203,1763747523476,-927.4980022,0.000411,120]
[394594204,1763747523509,-927.4980022,0.000411,120]
[394594205,1763747523543,-927.4980022,0.000411,120]
[394594206,1763747523579,-927.4980022,0.000411,120]
[394594207,1763747523614,-927.4980022,0.000411,120]
[394594208,1763747523648,-927.4980022,0.000411,120]
[394594209,1763747523685,-927.4980022,0.000411,120]
[394594210,1763747523717,-927.4980022,0.000411,120]